fUST/lending_fUST_20250627
["ID","MTS","AMOUNT","RATE_DAILY","PERIOD"]
[368118712,1751029840796,-460.0,0.00019726,2]
[368118713,1751029840805,-443.94846399,0.00019726,2]
[368118714,1751029840814,-460.0,0.00019726,2]
[368118715,1751029840823,-627.06,0.00019726,2]
[368118716,1751029840836,-460.0,0.00019726,2]
[368118717,1751029840845,-460.0,0.00019726,2]
[368118718,1751029840854,-460.0,0.00019726,2]
[368118719,1751029840863,-460.0,0.00019726,2]
[368118720,1751029840872,-665.9,0.00019726,2]
[368118721,1751029840881,-501.69657566,0.00019726,2]
[368118722,1751029840891,-502.08,0.00019726,2]
[368118723,1751029840901,-460.0,0.00019726,2]
[368118724,1751029840912,-3786.78,0.00019726,2]
[368118725,1751029840922,-480.64822948,0.00019726,2]
[368118726,1751029840931,-1216.38,0.00019726,2]
[368118727,1751029840941,-727.16,0.00019726,2]
[368118728,1751029840950,-460.0,0.00019726,2]
[368118729,1751029840960,-357.24165034,0.00019726,2]
[368118730,1751029840969,-460.0,0.00019726,2]
[368118731,1751029840978,-3017.37,0.00019726,2]
[368118732,1751029840988,-4525.56,0.00019726,2]
[368118733,1751029840998,-954.2,0.00019726,2]
[368118734,1751029841007,-460.0,0.00019726,2]
[368118735,1751029841016,-515.06,0.00019726,2]
[368118736,1751029841026,-2147.92,0.00019726,2]
[368118737,1751029841035,-159.84,0.00019726,2]
[368118738,1751029841044,-848.16,0.00019726,2]
[368118739,1751029841053,-460.0,0.00019726,2]
[368118740,1751029841062,-464.02,0.00019726,2]
[368118741,1751029841071,-460.0,0.00019726,2]
[368118742,1751029841080,-460.0,0.00019726,2]
[368118743,1751029841090,-5421.31,0.00019726,2]
[368118744,1751029841099,-460.0,0.00019726,2]
[368118745,1751029841108,-581.27,0.00019726,2]
[368118746,1751029841118,-460.0,0.00019726,2]
[368118747,1751029841127,-683.54,0.00019726,2]
[368118748,1751029841138,-460.0,0.00019726,2]
[368118749,1751029841147,-500.0,0.00019735,2]
[368118750,1751029841156,-500.0,0.00019735,2]
[368118751,1751029841165,-500.0,0.00019735,2]
[368118752,1751029841174,-168.0,0.00019753,2]
[368118753,1751029841184,-10118.81432857,0.000199,2]
[368118754,1751029841193,-1203.39092818,0.00019926,2]
[368118755,1751029841202,-620.0,0.00019952,2]
[368118756,1751029841212,-500.0,0.00019973,2]
[368118757,1751029841221,-500.0,0.00019973,2]
[368118758,1751029841230,-500.0,0.00019973,2]
[368118759,1751029841239,-617.83311831,0.00019973,2]
[368118760,1751029841248,-500.0,0.00019973,2]
[368118761,1751029841258,-322.77956311,0.00019973,2]
[368118762,1751029841267,-500.83643733,0.00019973,2]
[368118763,1751029841276,-500.0,0.00019973,2]
[368118764,1751029841285,-500.0,0.00019973,2]
[368118765,1751029841294,-501.27332284,0.00019973,2]
[368118766,1751029841303,-502.18333495,0.00019973,2]
[368118767,1751029841312,-500.0,0.00019973,2]
[368118768,1751029841321,-500.0,0.00019973,2]
[368118769,1751029841331,-500.0,0.00019973,2]
[368118770,1751029841340,-500.0,0.00019973,2]
[368118771,1751029841349,-500.0,0.00019973,2]
[368118772,1751029841358,-500.0,0.00019973,2]
[368118773,1751029841367,-500.0,0.00019973,2]
[368118774,1751029841376,-500.0,0.00019973,2]
[368118775,1751029841385,-504.06017893,0.00019973,2]
[368118776,1751029841394,-500.0,0.00019973,2]
[368118777,1751029841404,-100000.0,0.0001999,2]
[368118778,1751029841413,-198.46368161,0.00019999,2]
[368118779,1751029841423,-460.0,0.0002,2]
[368118780,1751029841432,-460.0,0.0002,2]
[368118781,1751029841440,-460.0,0.0002,2]
[368118782,1751029841450,-460.0,0.0002,2]
[368118783,1751029841458,-460.0,0.0002,2]
[368118784,1751029841468,-480.9,0.0002,2]
[368118785,1751029841477,-533.63,0.0002,2]
[368118786,1751029841486,-460.0,0.0002,2]
[368118787,1751029841495,-63338.96088,0.0002,2]
[368118788,1751029841505,-460.0,0.0002,2]
[368118789,1751029841514,-460.0,0.0002,2]
[368118790,1751029841523,-460.0,0.0002,2]
[368118791,1751029841532,-460.0,0.0002,2]
[368118792,1751029841541,-460.0,0.0002,2]
[368118793,1751029841551,-460.0,0.0002,2]
[368118794,1751029841560,-460.0,0.0002,2]
[368118795,1751029841569,-460.0,0.0002,2]
[368118796,1751029841578,-460.0,0.0002,2]
[368118797,1751029841588,-460.0,0.0002,2]
[368118798,1751029841597,-435.75951801,0.0002,2]
[368118799,1751029841606,-460.0,0.0002,2]
[368118800,1751029841616,-460.0,0.0002,2]
[368118801,1751029841625,-962.79,0.0002,2]
[368118802,1751029841634,-460.0,0.0002,2]
[368118803,1751029841643,-200.55,0.0002,2]
[368118804,1751029841653,-460.0,0.0002,2]
[368118805,1751029841662,-460.0,0.0002,2]
[368118806,1751029841671,-460.0,0.0002,2]
[368118807,1751029841681,-460.0,0.0002,2]
[368118808,1751029841690,-460.0,0.0002,2]
[368118809,1751029841699,-460.0,0.0002,2]
[368118810,1751029841708,-460.0,0.0002,2]
[368118811,1751029841718,-316.85765915,0.0002,2]
[368118812,1751029841727,-460.0,0.0002,2]
[368118813,1751029841737,-284.42,0.0002,2]
[368118814,1751029841746,-460.0,0.0002,2]
[368118815,1751029841756,-460.0,0.0002,2]
[368118816,1751029841765,-460.0,0.0002,2]
[368118817,1751029841774,-460.0,0.0002,2]
[368118818,1751029841783,-460.0,0.0002,2]
[368118819,1751029841793,-460.0,0.0002,2]
[368118820,1751029841803,-460.0,0.0002,2]
[368118821,1751029841812,-460.0,0.0002,2]
[368118822,1751029841821,-460.0,0.0002,2]
[368118823,1751029841831,-460.0,0.0002,2]
[368118824,1751029841842,-460.0,0.0002,2]
[368118825,1751029841851,-460.0,0.0002,2]
[368118826,1751029841860,-497.33035959,0.0002,2]
[368118827,1751029841870,-460.0,0.0002,2]
[368118828,1751029841880,-460.0,0.0002,2]
[368118829,1751029841889,-460.0,0.0002,2]
[368118830,1751029841899,-460.0,0.0002,2]
[368118831,1751029841909,-460.0,0.0002,2]
[368118832,1751029841918,-460.0,0.0002,2]
[368118833,1751029841927,-460.0,0.0002,2]
[368118834,1751029841936,-460.0,0.0002,2]
[368118835,1751029841945,-460.0,0.0002,2]
[368118836,1751029841955,-460.0,0.0002,2]
[368118837,1751029841965,-872.16,0.0002,2]
[368118838,1751029841974,-490.28,0.0002,2]
[368118839,1751029841983,-460.0,0.0002,2]
[368118840,1751029841993,-460.0,0.0002,2]
[368118841,1751029842002,-460.0,0.0002,2]
[368118842,1751029842012,-460.0,0.0002,2]
[368118843,1751029842021,-464.3291098,0.0002,2]
[368118844,1751029842030,-676.53,0.0002,2]
[368118845,1751029842039,-3577.22,0.0002,2]
[368118846,1751029842048,-460.0,0.0002,2]
[368118847,1751029842057,-460.0,0.0002,2]
[368118848,1751029842066,-1544.03,0.0002,2]
[368118849,1751029842075,-1861.18,0.0002,2]
[368118850,1751029842083,-460.0,0.0002,2]
[368118851,1751029842093,-2946.71,0.0002,2]
[368118852,1751029842102,-460.0,0.0002,2]
[368118853,1751029842111,-460.0,0.0002,2]
[368118854,1751029842120,-6518.4,0.0002,2]
[368118855,1751029842130,-460.0,0.0002,2]
[368118856,1751029842140,-402.6876768,0.0002,2]
[368118857,1751029842149,-460.0,0.0002,2]
[368118858,1751029842159,-1266.37,0.0002,2]
[368118859,1751029842169,-1132.2,0.0002,2]
[368118860,1751029842178,-460.0,0.0002,2]
[368118861,1751029842188,-460.0,0.0002,2]
[368118862,1751029842197,-765.43,0.0002,2]
[368118863,1751029842206,-460.0,0.0002,2]
[368118864,1751029842216,-460.0,0.0002,2]
[368118865,1751029842225,-241.83036512,0.0002,2]
[368118866,1751029842234,-848.57,0.0002,2]
[368118867,1751029842243,-460.0,0.0002,2]
[368118868,1751029842252,-5598.03,0.0002,2]
[368118869,1751029842262,-460.0,0.0002,2]
[368118871,1751029842271,-807.46,0.0002,2]
[368118872,1751029842280,-2217.11,0.0002,2]
[368118873,1751029842289,-851.26,0.0002,2]
[368118874,1751029842299,-1687.24,0.0002,2]
[368118875,1751029842308,-464.33,0.0002,2]
[368118876,1751029842318,-460.0,0.0002,2]
[368118877,1751029842328,-682.9,0.0002,2]
[368118878,1751029842337,-460.0,0.0002,2]
[368118880,1751029842347,-460.0,0.0002,2]
[368118881,1751029842356,-460.0,0.0002,2]
[368118883,1751029842365,-460.0,0.0002,2]
[368118885,1751029842375,-526.1,0.0002,2]
[368118887,1751029842384,-460.0,0.0002,2]
[368118889,1751029842393,-460.0,0.0002,2]
[368118891,1751029842402,-153.98,0.0002,2]
[368118893,1751029842412,-161.84492213,0.0002,2]
[368118895,1751029842422,-460.0,0.0002,2]
[368118897,1751029842432,-460.0,0.0002,2]
[368118899,1751029842441,-460.0,0.0002,2]
[368118901,1751029842450,-460.0,0.0002,2]
[368118903,1751029842460,-626.65,0.0002,2]
[368118905,1751029842470,-778.42,0.0002,2]
[368118907,1751029842479,-1807.73,0.0002,2]
[368118909,1751029842489,-2700.44,0.0002,2]
[368118911,1751029842499,-460.0,0.0002,2]
[368118912,1751029842513,-1046.99,0.0002,2]
[368118913,1751029842522,-460.0,0.0002,2]
[368118914,1751029842532,-1874.32,0.0002,2]
[368118915,1751029842541,-460.0,0.0002,2]
[368118916,1751029842550,-460.0,0.0002,2]
[368118917,1751029842560,-460.0,0.0002,2]
[368118919,1751029842569,-460.0,0.0002,2]
[368118920,1751029842579,-460.0,0.0002,2]
[368118921,1751029842588,-1037.07,0.0002,2]
[368118922,1751029842598,-460.0,0.0002,2]
[368118923,1751029842608,-460.0,0.0002,2]
[368118924,1751029842617,-627.06,0.0002,2]
[368118925,1751029842626,-498.71,0.0002,2]
[368118926,1751029842636,-460.0,0.0002,2]
[368118927,1751029842646,-460.0,0.0002,2]
[368118928,1751029842655,-460.0,0.0002,2]
[368118929,1751029842666,-665.9,0.0002,2]
[368118930,1751029842675,-460.0,0.0002,2]
[368118931,1751029842685,-3786.78,0.0002,2]
[368118932,1751029842694,-1216.38,0.0002,2]
[368118933,1751029842704,-727.16,0.0002,2]
[368118934,1751029842713,-460.0,0.0002,2]
[368118935,1751029842722,-460.0,0.0002,2]
[368118937,1751029842840,-3017.37,0.0002,2]
[368118938,1751029842850,-4525.56,0.0002,2]
[368118939,1751029842860,-460.0,0.0002,2]
[368118940,1751029842869,-515.06,0.0002,2]
[368118941,1751029842880,-2147.92,0.0002,2]
[368118943,1751029842890,-954.2,0.0002,2]
[368118945,1751029842899,-848.16,0.0002,2]
[368118947,1751029842911,-464.02,0.0002,2]
[368118948,1751029842920,-460.0,0.0002,2]
[368118949,1751029842930,-5421.31,0.0002,2]
[368118950,1751029842939,-460.0,0.0002,2]
[368118951,1751029842949,-581.27,0.0002,2]
[368118952,1751029842959,-683.54,0.0002,2]
[368118953,1751029842968,-460.0,0.0002,2]
[368118954,1751029842978,-620.0,0.00020005,2]
[368118955,1751029842987,-213.75309343,0.0002003,2]
[368118956,1751029842998,-230.26210603,0.0002003,2]
[368118957,1751029843008,-160.0,0.0002003,2]
[368118958,1751029843017,-160.0,0.0002003,2]
[368118959,1751029843027,-847.04181546,0.0002003,2]
[368118960,1751029843037,-214.91804724,0.0002003,2]
[368118961,1751029843047,-836.98798914,0.0002003,2]
[368118962,1751029843056,-160.0,0.00020033,2]
[368118963,1751029843065,-160.0,0.00020033,2]
[368118964,1751029843075,-160.0,0.00020033,2]
[368118965,1751029843084,-12562.41216491,0.00020034,2]
[368118966,1751029843093,-10118.81432848,0.00020107,2]
[368118967,1751029843103,-5888.0,0.0002021,2]
[368118968,1751029843111,-151.0,0.00020219,2]
[368118969,1751029843121,-151.0,0.00020219,2]
[368118970,1751029843130,-151.0,0.00020219,2]
[368118971,1751029843140,-151.25226114,0.00020219,2]
[368118972,1751029843149,-151.0,0.00020219,2]
[368118974,1751029843159,-500.0,0.00020224,2]
[368118975,1751029843168,-1000.0,0.00020224,2]
[368118976,1751029843178,-11982.40337,0.00020244,2]
[368118977,1751029843187,-500.0,0.00020245,2]
[368118978,1751029843196,-1000.0,0.00020245,2]
[368118979,1751029843206,-151.0,0.00020246,2]
[368118980,1751029843215,-151.0,0.00020246,2]
[368118981,1751029843224,-151.0,0.00020246,2]
[368118982,1751029843234,-151.0,0.00020246,2]
[368118983,1751029843243,-151.0,0.00020246,2]
[368118984,1751029843253,-151.0,0.00020246,2]
[368118985,1751029843262,-199.03612545,0.00020246,2]
[368118986,1751029843271,-151.0,0.00020246,2]
[368118987,1751029843279,-151.0,0.00020246,2]
[368118988,1751029843288,-288.89272804,0.0002027,2]
[368118989,1751029843298,-666.0,0.0002027,2]
[368118990,1751029843308,-5000.0,0.0002027,2]
[368118991,1751029843317,-500.0,0.0002027,2]
[368118992,1751029843326,-500.0,0.0002027,2]
[368118993,1751029843335,-500.0,0.0002027,2]
[368118994,1751029843345,-500.0,0.0002027,2]
[368118995,1751029843354,-207.4,0.0002027,2]
[368118996,1751029843363,-500.0,0.0002027,2]
[368118997,1751029843372,-500.0,0.0002027,2]
[368118998,1751029843381,-500.0,0.0002027,2]
[368118999,1751029843390,-500.0,0.0002027,2]
[368119000,1751029843399,-500.0,0.0002027,2]
[368119001,1751029843408,-500.0,0.0002027,2]
[368119002,1751029843418,-500.0,0.0002027,2]
[368119003,1751029843427,-500.0,0.0002027,2]
[368119004,1751029843436,-500.0,0.0002027,2]
[368119005,1751029843445,-511.88531974,0.0002027,2]
[368119006,1751029843455,-500.0,0.0002027,2]
[368119007,1751029843464,-500.0,0.0002027,2]
[368119008,1751029843474,-500.0,0.0002027,2]
[368119009,1751029843483,-500.0,0.0002027,2]
[368119010,1751029843493,-500.0,0.0002027,2]
[368119011,1751029843503,-500.0,0.0002027,2]
[368119012,1751029843513,-4942.54681648,0.0002027,2]
[368119013,1751029843523,-500.0,0.0002027,2]
[368119014,1751029843532,-500.0,0.0002027,2]
[368119015,1751029843541,-500.0,0.0002027,2]
[368119016,1751029843550,-500.0,0.0002027,2]
[368119017,1751029843560,-500.0,0.0002027,2]
[368119018,1751029843569,-500.0,0.0002027,2]
[368119019,1751029843578,-500.0,0.0002027,2]
[368119020,1751029843588,-500.0,0.0002027,2]
[368119021,1751029843597,-460.0,0.00020273,2]
[368119022,1751029843606,-460.0,0.00020273,2]
[368119023,1751029843615,-460.0,0.00020273,2]
[368119024,1751029843625,-460.0,0.00020273,2]
[368119025,1751029843634,-460.0,0.00020273,2]
[368119026,1751029843644,-460.0,0.00020273,2]
[368119027,1751029843654,-460.0,0.00020273,2]
[368119028,1751029843663,-460.0,0.00020273,2]
[368119029,1751029843672,-460.0,0.00020273,2]
[368119030,1751029843681,-460.0,0.00020273,2]
[368119031,1751029843691,-460.0,0.00020273,2]
[368119032,1751029843701,-460.0,0.00020273,2]
[368119033,1751029843710,-460.0,0.00020273,2]
[368119034,1751029843719,-460.0,0.00020273,2]
[368119035,1751029843728,-460.0,0.00020273,2]
[368119036,1751029843738,-248.28,0.00020273,2]
[368119037,1751029843747,-962.79,0.00020273,2]
[368119038,1751029843758,-460.0,0.00020273,2]
[368119039,1751029843767,-460.0,0.00020273,2]
[368119040,1751029843776,-460.0,0.00020273,2]
[368119041,1751029843786,-460.0,0.00020273,2]
[368119042,1751029843795,-460.0,0.00020273,2]
[368119043,1751029843804,-460.0,0.00020273,2]
[368119044,1751029843813,-460.0,0.00020273,2]
[368119045,1751029843823,-460.0,0.00020273,2]
[368119046,1751029843833,-460.0,0.00020273,2]
[368119047,1751029843843,-460.0,0.00020273,2]
[368119048,1751029843853,-460.0,0.00020273,2]
[368119049,1751029843863,-460.0,0.00020273,2]
[368119050,1751029843872,-460.0,0.00020273,2]
[368119051,1751029843882,-460.0,0.00020273,2]
[368119052,1751029843892,-460.0,0.00020273,2]
[368119053,1751029843902,-460.0,0.00020273,2]
[368119054,1751029843913,-460.0,0.00020273,2]
[368119055,1751029843923,-460.0,0.00020273,2]
[368119056,1751029843933,-460.0,0.00020273,2]
[368119057,1751029843943,-460.0,0.00020273,2]
[368119058,1751029843952,-460.0,0.00020273,2]
[368119059,1751029843962,-460.0,0.00020273,2]
[368119060,1751029843971,-460.0,0.00020273,2]
[368119061,1751029843981,-286.9,0.00020273,2]
[368119062,1751029843990,-197.84,0.00020273,2]
[368119063,1751029844000,-460.0,0.00020273,2]
[368119064,1751029844010,-872.16,0.00020273,2]
[368119065,1751029844019,-490.28,0.00020273,2]
[368119066,1751029844029,-442.58586527,0.00020273,2]
[368119067,1751029844038,-589.84197217,0.00020273,2]
[368119068,1751029844047,-460.0,0.00020273,2]
[368119069,1751029844057,-460.0,0.00020273,2]
[368119070,1751029844067,-676.53,0.00020273,2]
[368119071,1751029844076,-3577.22,0.00020273,2]
[368119072,1751029844086,-460.0,0.00020273,2]
[368119073,1751029844096,-1544.03,0.00020273,2]
[368119074,1751029844105,-460.0,0.00020273,2]
[368119075,1751029844114,-1861.18,0.00020273,2]
[368119076,1751029844124,-2946.71,0.00020273,2]
[368119077,1751029844138,-460.0,0.00020273,2]
[368119078,1751029844147,-460.0,0.00020273,2]
[368119079,1751029844157,-6518.4,0.00020273,2]
[368119080,1751029844166,-460.0,0.00020273,2]
[368119081,1751029844175,-460.0,0.00020273,2]
[368119082,1751029844185,-1266.37,0.00020273,2]
[368119083,1751029844194,-1132.2,0.00020273,2]
[368119084,1751029844203,-460.0,0.00020273,2]
[368119085,1751029844212,-460.0,0.00020273,2]
[368119086,1751029844222,-765.43,0.00020273,2]
[368119087,1751029844231,-460.0,0.00020273,2]
[368119088,1751029844240,-460.0,0.00020273,2]
[368119089,1751029844250,-848.57,0.00020273,2]
[368119090,1751029844260,-460.0,0.00020273,2]
[368119091,1751029844269,-5598.03,0.00020273,2]
[368119092,1751029844279,-460.0,0.00020273,2]
[368119093,1751029844288,-807.46,0.00020273,2]
[368119094,1751029844297,-2217.11,0.00020273,2]
[368119095,1751029844307,-851.26,0.00020273,2]
[368119096,1751029844316,-1687.24,0.00020273,2]
[368119097,1751029844325,-464.33,0.00020273,2]
[368119098,1751029844334,-682.9,0.00020273,2]
[368119099,1751029844343,-460.0,0.00020273,2]
[368119100,1751029844353,-460.0,0.00020273,2]
[368119101,1751029844362,-172.36113675,0.00020273,2]
[368119102,1751029844371,-542.41567513,0.00020273,2]
[368119103,1751029844380,-460.0,0.00020273,2]
[368119104,1751029844389,-460.0,0.00020273,2]
[368119105,1751029844399,-460.0,0.00020273,2]
[368119106,1751029844408,-460.0,0.00020273,2]
[368119107,1751029844417,-460.0,0.00020273,2]
[368119108,1751029844427,-460.0,0.00020273,2]
[368119109,1751029844436,-626.65,0.00020273,2]
[368119110,1751029844445,-778.42,0.00020273,2]
[368119111,1751029844455,-1807.73,0.00020273,2]
[368119112,1751029844464,-2700.44,0.00020273,2]
[368119113,1751029844473,-460.0,0.00020273,2]
[368119114,1751029844482,-1046.99,0.00020273,2]
[368119115,1751029844491,-460.0,0.00020273,2]
[368119116,1751029844500,-1874.32,0.00020273,2]
[368119117,1751029844510,-460.0,0.00020273,2]
[368119118,1751029844519,-460.0,0.00020273,2]
[368119119,1751029844528,-460.0,0.00020273,2]
[368119120,1751029844538,-460.0,0.00020273,2]
[368119121,1751029844547,-1037.07,0.00020273,2]
[368119122,1751029844556,-460.0,0.00020273,2]
[368119123,1751029844566,-460.0,0.00020273,2]
[368119124,1751029844576,-627.06,0.00020273,2]
[368119125,1751029844586,-460.0,0.00020273,2]
[368119126,1751029844595,-460.0,0.00020273,2]
[368119127,1751029844604,-665.9,0.00020273,2]
[368119128,1751029844614,-460.0,0.00020273,2]
[368119129,1751029844623,-3786.78,0.00020273,2]
[368119130,1751029844632,-1216.38,0.00020273,2]
[368119131,1751029844641,-727.16,0.00020273,2]
[368119132,1751029844651,-460.0,0.00020273,2]
[368119133,1751029844660,-3017.37,0.00020273,2]
[368119134,1751029844669,-4525.56,0.00020273,2]
[368119135,1751029844679,-460.0,0.00020273,2]
[368119136,1751029844688,-515.06,0.00020273,2]
[368119137,1751029844697,-2147.92,0.00020273,2]
[368119138,1751029844706,-954.2,0.00020273,2]
[368119139,1751029844716,-848.16,0.00020273,2]
[368119140,1751029844725,-464.02,0.00020273,2]
[368119141,1751029844734,-460.0,0.00020273,2]
[368119142,1751029844743,-5421.31,0.00020273,2]
[368119143,1751029844752,-460.0,0.00020273,2]
[368119144,1751029844761,-581.27,0.00020273,2]
[368119145,1751029844771,-683.54,0.00020273,2]
[368119146,1751029844780,-151.0,0.00020273,2]
[368119147,1751029844790,-198.0,0.00020274,2]
[368119148,1751029844799,-198.0,0.00020274,2]
[368119149,1751029844809,-1000.0,0.00020283,2]
[368119150,1751029844818,-198.0,0.00020301,2]
[368119151,1751029844827,-847.04181546,0.00020314,3]
[368119152,1751029844840,-213.75309343,0.00020314,3]
[368119153,1751029844849,-12562.41216491,0.00020314,3]
[368119154,1751029844858,-10118.81432848,0.00020314,3]
[368119155,1751029844868,-690.642,0.00020325,2]
[368119156,1751029844878,-716.195754,0.0002038,2]
[368119157,1751029844888,-742.6949969,0.00020435,2]
[368119158,1751029844897,-770.17471178,0.0002049,2]
[368119159,1751029844907,-1000.0,0.00020521,2]
[368119160,1751029844916,-1000.0,0.00020521,2]
[368119161,1751029844927,-1000.0,0.00020521,2]
[368119162,1751029844937,-876.43048993,0.00020521,2]
[368119163,1751029844946,-501.50572642,0.00020521,2]
[368119164,1751029844956,-1000.0,0.00020521,2]
[368119165,1751029844965,-500.0,0.00020521,2]
[368119166,1751029844975,-1000.0,0.00020521,2]
[368119167,1751029844984,-1000.0,0.00020521,2]
[368119168,1751029844994,-1000.0,0.00020521,2]
[368119169,1751029845004,-506.63485112,0.00020521,2]
[368119170,1751029845013,-1000.0,0.00020521,2]
[368119171,1751029845024,-10118.81432848,0.00020521,3]
[368119172,1751029845033,-798.67117612,0.00020545,2]
[368119173,1751029845043,-460.0,0.00020547,2]
[368119174,1751029845052,-330.89,0.00020547,2]
[368119175,1751029845062,-460.0,0.00020547,2]
[368119176,1751029845072,-460.0,0.00020547,2]
[368119177,1751029845081,-460.0,0.00020547,2]
[368119178,1751029845091,-460.0,0.00020547,2]
[368119179,1751029845101,-460.0,0.00020547,2]
[368119180,1751029845110,-460.0,0.00020547,2]
[368119181,1751029845119,-460.0,0.00020547,2]
[368119182,1751029845128,-460.0,0.00020547,2]
[368119183,1751029845138,-460.0,0.00020547,2]
[368119184,1751029845147,-460.0,0.00020547,2]
[368119185,1751029845157,-460.0,0.00020547,2]
[368119186,1751029845167,-460.0,0.00020547,2]
[368119187,1751029845280,-460.0,0.00020547,2]
[368119188,1751029845290,-962.79,0.00020547,2]
[368119189,1751029845300,-460.0,0.00020547,2]
[368119190,1751029845309,-460.0,0.00020547,2]
[368119191,1751029845318,-157.91,0.00020547,2]
[368119192,1751029845328,-460.0,0.00020547,2]
[368119194,1751029845337,-460.0,0.00020547,2]
[368119196,1751029845347,-460.0,0.00020547,2]
[368119197,1751029845357,-460.0,0.00020547,2]
[368119198,1751029845366,-460.0,0.00020547,2]
[368119199,1751029845376,-460.0,0.00020547,2]
[368119200,1751029845385,-460.0,0.00020547,2]
[368119201,1751029845394,-460.0,0.00020547,2]
[368119202,1751029845404,-460.0,0.00020547,2]
[368119203,1751029845413,-460.0,0.00020547,2]
[368119204,1751029845422,-600.98400939,0.00020547,2]
[368119205,1751029845432,-551.89,0.00020547,2]
[368119206,1751029845441,-460.0,0.00020547,2]
[368119207,1751029845450,-460.0,0.00020547,2]
[368119208,1751029845459,-460.0,0.00020547,2]
[368119209,1751029845469,-460.0,0.00020547,2]
[368119210,1751029845478,-460.0,0.00020547,2]
[368119211,1751029845487,-460.0,0.00020547,2]
[368119212,1751029845496,-460.0,0.00020547,2]
[368119213,1751029845506,-460.0,0.00020547,2]
[368119214,1751029845515,-872.16,0.00020547,2]
[368119215,1751029845525,-490.28,0.00020547,2]
[368119216,1751029845534,-460.0,0.00020547,2]
[368119217,1751029845543,-460.0,0.00020547,2]
[368119218,1751029845553,-676.53,0.00020547,2]
[368119219,1751029845562,-3577.22,0.00020547,2]
[368119220,1751029845571,-1544.03,0.00020547,2]
[368119221,1751029845580,-460.0,0.00020547,2]
[368119222,1751029845590,-1861.18,0.00020547,2]
[368119223,1751029845599,-2946.71,0.00020547,2]
[368119225,1751029845609,-460.0,0.00020547,2]
[368119226,1751029845618,-6518.4,0.00020547,2]
[368119227,1751029845628,-460.0,0.00020547,2]
[368119228,1751029845637,-460.0,0.00020547,2]
[368119229,1751029845647,-1266.37,0.00020547,2]
[368119230,1751029845656,-1132.2,0.00020547,2]
[368119231,1751029845665,-460.0,0.00020547,2]
[368119232,1751029845674,-765.43,0.00020547,2]
[368119233,1751029845683,-460.0,0.00020547,2]
[368119234,1751029845692,-460.0,0.00020547,2]
[368119235,1751029845702,-848.57,0.00020547,2]
[368119236,1751029845711,-460.0,0.00020547,2]
[368119237,1751029845720,-5598.03,0.00020547,2]